[Event "ESTCC 65 2019"]
[Site "Mali Losinj"]
[Date "2019.09.22"]
[Round "5.10"]
[White "Westerinen, Heikki M.J."]
[Black "Van Herck, Marcel"]
[Result "1/2-1/2"]
[ECO "B12"]
[WhiteElo "2296"]
[BlackElo "2088"]
[Annotator "NA"]
[PlyCount "57"]
[EventDate "2019.09.18"]
[EventType "team-tourn"]
[EventCountry "CRO"]
[SourceTitle "playchess.com"]
[Source "ChessBase"]
[SourceQuality "1"]
[WhiteTeam "Finland"]
[BlackTeam "Belgium"]
[WhiteTeamCountry "FIN"]
[BlackTeamCountry "BEL"]
[TimeControl "40/5400+30:1800+30"]

1. e4 {[%emt 0:00:30]} c6 {[%emt 0:00:30]} 2. d4 {[%emt 0:00:30]} d5 {[%emt 0:00:30]} 3. e5 {[%emt 0:00:30]} Bf5 {[%emt 0:00:00]} 4. Nc3 {[%emt 0:00:30]} e6 {[%emt 0:00:00]} 5. g4 {[%emt 0:00:30]} Bg6 {[%emt 0:00:30]} 6. Nge2 {[%emt 0:00:30]} c5 {[%emt 0:00:30]} 7. h4 {[%emt 0:01:30]} h5 {[%emt 0:00:30]} 8. Nf4 {[%emt 0:00:30]} Bh7 {[%emt 0:00:30]} 9. g5 {[%emt 0:00:30]} Nc6 {[%emt 0:03:30]} 10. Qxh5 {[%emt 0:02:30]} Nxd4 {[%emt 0:02:30]} 11. Nxe6 {[%emt 0:03:30]} Nxe6 {[%emt 0:00:30]} 12. Bb5+ {[%emt 0:00:30]} Ke7 {[%emt 0:00:30]} 13. g6 {[%emt 0:00:30]} Bxg6 {[%emt 0:03:30]} 14. Qxh8 {[%emt 0:00:30]} d4 {[%emt 0:03:30]} 15. Bg5+ {[%emt 0:07:30]} f6 {[%emt 0:00:30]} 16. Qxg8 {[%emt 0:11:30]} Bf7 {[%emt 0:01:30]} 17. Bxf6+ {[%emt 0:17:30]} gxf6 {[%emt 0:00:30]} 18. Qg2 {[%emt 0:01:30]} dxc3 {[%emt 0:01:30]} 19. Rd1 {[%emt 0:07:30]} cxb2 {[%emt 0:01:30]} 20. Qxb7+ {[%emt 0:02:30]} Nc7 {[%emt 0:00:30]} 21. O-O {[%emt 0:06:30]} Bd5 {[%emt 0:01:30]} 22. Rxd5 {[%emt 0:01:30]} Qxd5 {[%emt 0:00:00]} 23. Qxc7+ {[%emt 0:00:30]} Ke6 {[%emt 0:00:00]} 24. Bc6 {[%emt 0:11:30]} Qd8 {[%emt 0:02:30]} 25. Qh7 {[%emt 0:00:30]} Rb8 {[%emt 0:01:30]} 26. Qg8+ {[%emt 0:04:37]} Kf5 {[%emt 0:02:30]} 27. Qh7+ {[%emt 0:06:08]} Ke6 {[%emt 0:00:30]} 28. Qg8+ {[%emt 0:05:17]} Kf5 {[%emt 0:00:30]} 29. Qh7+ {[%emt 0:04:47]} 1/2-1/2

[Event "ESTCC 65 2019"]
[Site "Mali Losinj"]
[Date "2019.09.22"]
[Round "5.11"]
[White "Van de Wynkele, Herman"]
[Black "Kivimaki, Jaakko"]
[Result "0-1"]
[ECO "C44"]
[WhiteElo "2085"]
[BlackElo "2195"]
[Annotator "NA"]
[PlyCount "48"]
[EventDate "2019.09.18"]
[EventType "team-tourn"]
[EventCountry "CRO"]
[SourceTitle "playchess.com"]
[Source "ChessBase"]
[SourceQuality "1"]
[WhiteTeam "Belgium"]
[BlackTeam "Finland"]
[WhiteTeamCountry "BEL"]
[BlackTeamCountry "FIN"]
[TimeControl "40/5400+30:1800+30"]

1. e4 {[%emt 0:00:30]} e5 {[%emt 0:00:30]} 2. Nf3 {[%emt 0:00:00]} Nc6 {[%emt 0:00:00]} 3. Bc4 {[%emt 0:00:00]} Bc5 {[%emt 0:00:00]} 4. d4 {[%emt 0:00:30]} exd4 {[%emt 0:01:30]} 5. O-O {[%emt 0:01:30]} d6 {[%emt 0:04:30]} 6. c3 {[%emt 0:00:30]} Qf6 {[%emt 0:04:30]} 7. e5 {[%emt 0:22:30]} dxe5 {[%emt 0:02:30]} 8. Ng5 {[%emt 0:07:30]} Be6 {[%emt 0:09:30]} 9. Ne4 {[%emt 0:04:30]} Qe7 {[%emt 0:00:30]} 10. Bxe6 {[%emt 0:00:00]} fxe6 {[%emt 0:00:30]} 11. Qh5+ {[%emt 0:00:00]} Kd7 {[%emt 0:07:30]} 12. b4 {[%emt 0:15:30]} Bd6 {[%emt 0:02:30]} 13. b5 {[%emt 0:01:30]} Nd8 {[%emt 0:01:30]} 14. Bg5 {[%emt 0:00:30]} Nf6 {[%emt 0:06:30]} 15. Qh4 {[%emt 0:05:30]} Rf8 {[%emt 0:01:30]} 16. Nbd2 {[%emt 0:01:30]} h6 {[%emt 0:00:30]} 17. Nxf6+ {[%emt 0:01:30]} gxf6 {[%emt 0:00:30]} 18. Bxh6 {[%emt 0:00:00]} Rh8 {[%emt 0:01:30]} 19. cxd4 {[%emt 0:12:00]} Qh7 {[%emt 0:01:30]} 20. dxe5 {[%emt 0:04:30]} fxe5 {[%emt 0:01:30]} 21. Nc4 {[%emt 0:06:10]} Qxh6 {[%emt 0:00:30]} 22. Qg3 {[%emt 0:01:18]} Nf7 {[%emt 0:00:30]} 23. h3 {[%emt 0:00:40]} Rag8 {[%emt 0:01:30]} 24. Qf3 {[%emt 0:00:42]} Ng5 {[%emt 0:02:30]} 0-1

[Event "ESTCC 65 2019"]
[Site "Mali Losinj"]
[Date "2019.09.22"]
[Round "5.12"]
[White "Vinke, Dietmar"]
[Black "Schrickx, Frank"]
[Result "1-0"]
[ECO "C00"]
[WhiteElo "2129"]
[BlackElo "1813"]
[Annotator "NA"]
[PlyCount "93"]
[EventDate "2019.09.18"]
[EventType "team-tourn"]
[EventCountry "CRO"]
[SourceTitle "playchess.com"]
[Source "ChessBase"]
[SourceQuality "1"]
[WhiteTeam "Finland"]
[BlackTeam "Belgium"]
[WhiteTeamCountry "FIN"]
[BlackTeamCountry "BEL"]
[TimeControl "40/5400+30:1800+30"]

1. Nf3 {[%emt 0:00:30]} d5 {[%emt 0:00:30]} 2. g3 {[%emt 0:00:00]} Nf6 {[%emt 0:00:00]} 3. Bg2 {[%emt 0:00:00]} e6 {[%emt 0:00:00]} 4. O-O {[%emt 0:00:00]} Be7 {[%emt 0:00:30]} 5. d3 {[%emt 0:00:00]} c5 {[%emt 0:01:30]} 6. Nbd2 {[%emt 0:00:30]} Nc6 {[%emt 0:00:30]} 7. e4 {[%emt 0:00:30]} dxe4 {[%emt 0:02:30]} 8. dxe4 {[%emt 0:00:00]} Qc7 {[%emt 0:03:30]} 9. c3 {[%emt 0:05:00]} O-O {[%emt 0:10:30]} 10. Qe2 {[%emt 0:11:30]} e5 {[%emt 0:05:30]} 11. Nc4 {[%emt 0:08:30]} Bg4 {[%emt 0:05:30]} 12. Ne3 {[%emt 0:03:30]} Bxf3 {[%emt 0:04:30]} 13. Qxf3 {[%emt 0:11:30]} Rad8 {[%emt 0:01:30]} 14. Nf5 {[%emt 0:01:30]} Ne8 {[%emt 0:03:30]} 15. Be3 {[%emt 0:01:30]} b6 {[%emt 0:01:30]} 16. Nxe7+ {[%emt 0:02:30]} Nxe7 {[%emt 0:00:30]} 17. Rfd1 {[%emt 0:00:30]} Nd6 {[%emt 0:07:30]} 18. Qe2 {[%emt 0:01:30]} Nb7 {[%emt 0:05:30]} 19. Bf1 {[%emt 0:14:30]} Rxd1 {[%emt 0:00:30]} 20. Rxd1 {[%emt 0:00:00]} Rd8 {[%emt 0:00:30]} 21. f3 {[%emt 0:01:00]} Rxd1 {[%emt 0:04:30]} 22. Qxd1 {[%emt 0:00:00]} Nd8 {[%emt 0:01:30]} 23. Bh3 {[%emt 0:11:00]} Ne6 {[%emt 0:04:30]} 24. Kf2 {[%emt 0:02:30]} h6 {[%emt 0:01:30]} 25. Qa4 {[%emt 0:00:30]} Kf8 {[%emt 0:01:30]} 26. Bf1 {[%emt 0:03:30]} a5 {[%emt 0:04:30]} 27. Qc4 {[%emt 0:02:36]} Qd6 {[%emt 0:05:30]} 28. Qa6 {[%emt 0:03:26]} g5 {[%emt 0:01:30]} 29. Qd3 {[%emt 0:01:13]} Qxd3 {[%emt 0:02:30]} 30. Bxd3 {[%emt 0:00:02]} Nc6 {[%emt 0:02:48]} 31. Bc4 {[%emt 0:02:25]} Ke7 {[%emt 0:03:00]} 32. a4 {[%emt 0:00:11]} f6 {[%emt 0:01:01]} 33. Ke2 {[%emt 0:00:39]} Kd6 {[%emt 0:00:34]} 34. Kd3 {[%emt 0:00:12]} Kd7 {[%emt 0:03:19]} 35. Kc2 {[%emt 0:06:14]} Kd6 {[%emt 0:00:52]} 36. Kb3 {[%emt 0:00:52]} Nf8 {[%emt 0:01:12]} 37. Bd5 {[%emt 0:01:52]} Ne7 {[%emt 0:00:40]} 38. Bf7 {[%emt 0:00:08]} Nc6 {[%emt 0:03:40]} 39. Kc4 {[%emt 0:00:41]} Na7 {[%emt 0:02:08]} 40. b4 {[%emt 0:01:24]} Nd7 {[%emt 0:01:04]} 41. Be8 {[%emt 0:30:42]} axb4 {[%emt 0:31:42]} 42. Bxd7 {[%emt 0:02:31]} Kxd7 {[%emt 0:01:05]} 43. cxb4 {[%emt 0:00:09]} cxb4 {[%emt 0:00:44]} 44. Bxb6 {[%emt 0:00:15]} Nc8 {[%emt 0:02:39]} 45. Bc5 {[%emt 0:01:39]} Kc6 {[%emt 0:00:45]} 46. Kxb4 {[%emt 0:01:18]} h5 {[%emt 0:00:00]} 47. h3 {[%emt 0:00:00]} 1-0

[Event "ESTCC 65 2019"]
[Site "Mali Losinj"]
[Date "2019.09.22"]
[Round "5.13"]
[White "Beilfuss, Wilfried"]
[Black "Quinn, John M"]
[Result "1/2-1/2"]
[ECO "A20"]
[WhiteElo "2192"]
[BlackElo "2105"]
[Annotator "NA"]
[PlyCount "60"]
[EventDate "2019.09.18"]
[EventType "team-tourn"]
[EventCountry "CRO"]
[SourceTitle "playchess.com"]
[Source "ChessBase"]
[SourceQuality "1"]
[WhiteTeam "Germany"]
[BlackTeam "England"]
[WhiteTeamCountry "GER"]
[BlackTeamCountry "ENG"]
[TimeControl "40/5400+30:1800+30"]

1. c4 {[%emt 0:00:30]} e5 {[%emt 0:00:30]} 2. g3 {[%emt 0:00:30]} c6 {[%emt 0:00:30]} 3. d4 {[%emt 0:00:30]} e4 {[%emt 0:00:30]} 4. Bg2 {[%emt 0:01:30]} d5 {[%emt 0:00:00]} 5. Nc3 {[%emt 0:02:30]} Nf6 {[%emt 0:02:00]} 6. Bg5 {[%emt 0:03:30]} Nbd7 {[%emt 0:00:30]} 7. cxd5 {[%emt 0:04:30]} cxd5 {[%emt 0:00:00]} 8. Qb3 {[%emt 0:03:30]} Bd6 {[%emt 0:06:00]} 9. Nh3 {[%emt 0:00:30]} h6 {[%emt 0:18:30]} 10. Bf4 {[%emt 0:00:30]} Bxf4 {[%emt 0:06:30]} 11. Nxf4 {[%emt 0:00:30]} Nb6 {[%emt 0:00:30]} 12. O-O {[%emt 0:02:30]} O-O {[%emt 0:03:30]} 13. Rad1 {[%emt 0:21:30]} Re8 {[%emt 0:03:30]} 14. Rfe1 {[%emt 0:08:30]} g5 {[%emt 0:13:30]} 15. Nh3 {[%emt 0:00:00]} Nc4 {[%emt 0:00:00]} 16. Nb1 {[%emt 0:04:00]} Qa5 {[%emt 0:07:00]} 17. Nc3 {[%emt 0:08:30]} Bd7 {[%emt 0:03:30]} 18. Rc1 {[%emt 0:01:30]} Rac8 {[%emt 0:04:30]} 19. Qc2 {[%emt 0:08:30]} Rc7 {[%emt 0:08:30]} 20. f3 {[%emt 0:08:30]} Qb6 {[%emt 0:04:55]} 21. fxe4 {[%emt 0:01:00]} Qxd4+ {[%emt 0:01:21]} 22. Kh1 {[%emt 0:02:26]} Ne3 {[%emt 0:07:27]} 23. Qd3 {[%emt 0:00:32]} Qxd3 {[%emt 0:01:24]} 24. exd3 {[%emt 0:00:02]} Nxg2 {[%emt 0:01:22]} 25. Kxg2 {[%emt 0:00:12]} Bc6 {[%emt 0:01:03]} 26. Nb5 {[%emt 0:01:26]} Rce7 {[%emt 0:01:27]} 27. Nd6 {[%emt 0:05:55]} dxe4 {[%emt 0:01:59]} 28. Nxe8 {[%emt 0:00:32]} Rxe8 {[%emt 0:00:12]} 29. dxe4 {[%emt 0:00:54]} Nxe4 {[%emt 0:00:20]} 30. Kg1 {[%emt 0:01:14]} f5 {[%emt 0:01:36]} 1/2-1/2

[Event "ESTCC 65 2019"]
[Site "Mali Losinj"]
[Date "2019.09.22"]
[Round "5.14"]
[White "Hutchinson, Paul A"]
[Black "Becker, Norbert"]
[Result "1/2-1/2"]
[ECO "D12"]
[WhiteElo "2124"]
[BlackElo "2131"]
[Annotator "NA"]
[PlyCount "127"]
[EventDate "2019.09.18"]
[EventType "team-tourn"]
[EventCountry "CRO"]
[SourceTitle "playchess.com"]
[Source "ChessBase"]
[SourceQuality "1"]
[WhiteTeam "England"]
[BlackTeam "Germany"]
[WhiteTeamCountry "ENG"]
[BlackTeamCountry "GER"]
[TimeControl "40/5400+30:1800+30"]

1. d4 {[%emt 0:00:30]} d5 {[%emt 0:00:30]} 2. Nf3 {[%emt 0:00:30]} Nf6 {[%emt 0:00:30]} 3. e3 {[%emt 0:03:30]} Bf5 {[%emt 0:00:30]} 4. Be2 {[%emt 0:00:30]} e6 {[%emt 0:00:30]} 5. O-O {[%emt 0:00:30]} Bd6 {[%emt 0:01:30]} 6. c4 {[%emt 0:03:30]} c6 {[%emt 0:01:30]} 7. Nc3 {[%emt 0:00:00]} Nbd7 {[%emt 0:02:30]} 8. b3 {[%emt 0:06:00]} h6 {[%emt 0:03:30]} 9. Bb2 {[%emt 0:00:00]} O-O {[%emt 0:00:00]} 10. Rc1 {[%emt 0:01:00]} Rc8 {[%emt 0:03:00]} 11. h3 {[%emt 0:01:30]} Qe7 {[%emt 0:01:30]} 12. Re1 {[%emt 0:10:30]} Rfd8 {[%emt 0:03:30]} 13. Bd3 {[%emt 0:05:30]} Ne4 {[%emt 0:08:30]} 14. Qc2 {[%emt 0:01:30]} Bb4 {[%emt 0:09:30]} 15. Red1 {[%emt 0:04:30]} Nxc3 {[%emt 0:14:30]} 16. Bxc3 {[%emt 0:00:30]} Bxc3 {[%emt 0:01:30]} 17. Qxc3 {[%emt 0:06:30]} Bxd3 {[%emt 0:00:30]} 18. Qxd3 {[%emt 0:00:30]} Qa3 {[%emt 0:04:30]} 19. Qc2 {[%emt 0:09:30]} a5 {[%emt 0:02:30]} 20. Rb1 {[%emt 0:02:30]} Qd6 {[%emt 0:07:30]} 21. c5 {[%emt 0:01:30]} Qc7 {[%emt 0:00:30]} 22. b4 {[%emt 0:06:30]} axb4 {[%emt 0:03:30]} 23. Rxb4 {[%emt 0:01:30]} Ra8 {[%emt 0:00:30]} 24. Rdb1 {[%emt 0:01:30]} Ra7 {[%emt 0:01:30]} 25. R1b2 {[%emt 0:00:30]} Rb8 {[%emt 0:01:30]} 26. Qb1 {[%emt 0:01:30]} f6 {[%emt 0:03:30]} 27. Nh4 {[%emt 0:01:30]} Nf8 {[%emt 0:04:30]} 28. g3 {[%emt 0:02:30]} Qc8 {[%emt 0:03:10]} 29. Kg2 {[%emt 0:00:30]} Qd7 {[%emt 0:01:27]} 30. a4 {[%emt 0:00:30]} Qc7 {[%emt 0:01:02]} 31. Ng6 {[%emt 0:03:30]} Nxg6 {[%emt 0:01:40]} 32. Qxg6 {[%emt 0:00:00]} Qf7 {[%emt 0:02:27]} 33. Qxf7+ {[%emt 0:01:00]} Kxf7 {[%emt 0:00:04]} 34. Rb6 {[%emt 0:00:30]} e5 {[%emt 0:04:20]} 35. a5 {[%emt 0:07:15]} Rxa5 {[%emt 0:02:36]} 36. Rxb7+ {[%emt 0:00:08]} Rxb7 {[%emt 0:00:20]} 37. Rxb7+ {[%emt 0:00:06]} Kg6 {[%emt 0:00:17]} 38. Rb6 {[%emt 0:01:17]} exd4 {[%emt 0:00:34]} 39. exd4 {[%emt 0:00:06]} Ra4 {[%emt 0:00:14]} 40. Rxc6 {[%emt 0:00:24]} Rxd4 {[%emt 0:00:18]} 41. Rd6 {[%emt 0:01:14]} Rd3 {[%emt 0:11:31]} 42. Rd7 {[%emt 0:04:30]} d4 {[%emt 0:03:30]} 43. c6 {[%emt 0:00:30]} Rc3 {[%emt 0:00:30]} 44. c7 {[%emt 0:00:30]} f5 {[%emt 0:02:30]} 45. g4 {[%emt 0:04:30]} fxg4 {[%emt 0:03:43]} 46. hxg4 {[%emt 0:00:30]} Kf6 {[%emt 0:00:41]} 47. f4 {[%emt 0:01:30]} g6 {[%emt 0:00:44]} 48. Kf2 {[%emt 0:00:00]} h5 {[%emt 0:03:33]} 49. Rd6+ {[%emt 0:12:00]} Ke7 {[%emt 0:03:55]} 50. Rxg6 {[%emt 0:00:30]} hxg4 {[%emt 0:00:13]} 51. Rxg4 {[%emt 0:00:30]} Rxc7 {[%emt 0:00:32]} 52. Rg7+ {[%emt 0:00:30]} Kd6 {[%emt 0:00:12]} 53. Rxc7 {[%emt 0:00:30]} Kxc7 {[%emt 0:00:05]} 54. Kf3 {[%emt 0:00:00]} Kd6 {[%emt 0:00:23]} 55. Ke4 {[%emt 0:00:00]} Ke6 {[%emt 0:00:13]} 56. Kxd4 {[%emt 0:00:30]} Kf5 {[%emt 0:00:22]} 57. Ke3 {[%emt 0:00:00]} Kf6 {[%emt 0:00:42]} 58. Ke4 {[%emt 0:00:00]} Ke6 {[%emt 0:00:08]} 59. f5+ {[%emt 0:00:30]} Kf6 {[%emt 0:00:12]} 60. Kf4 {[%emt 0:00:00]} Kf7 {[%emt 0:00:10]} 61. Ke5 {[%emt 0:01:00]} Ke7 {[%emt 0:00:08]} 62. f6+ {[%emt 0:00:30]} Kf7 {[%emt 0:00:06]} 63. Kf5 {[%emt 0:00:00]} Kf8 {[%emt 0:00:09]} 64. Ke6 {[%emt 0:00:00]} 1/2-1/2

[Event "ESTCC 65 2019"]
[Site "Mali Losinj"]
[Date "2019.09.22"]
[Round "5.15"]
[White "Mueller, Gerhard"]
[Black "Hewson, Brian W R"]
[Result "1-0"]
[ECO "B17"]
[WhiteElo "2104"]
[BlackElo "2074"]
[Annotator "NA"]
[PlyCount "91"]
[EventDate "2019.09.18"]
[EventType "team-tourn"]
[EventCountry "CRO"]
[SourceTitle "playchess.com"]
[Source "ChessBase"]
[SourceQuality "1"]
[WhiteTeam "Germany"]
[BlackTeam "England"]
[WhiteTeamCountry "GER"]
[BlackTeamCountry "ENG"]
[TimeControl "40/5400+30:1800+30"]

1. e4 {[%emt 0:00:30]} c6 {[%emt 0:00:30]} 2. d4 {[%emt 0:00:00]} d5 {[%emt 0:00:30]} 3. Nd2 {[%emt 0:00:00]} dxe4 {[%emt 0:00:00]} 4. Nxe4 {[%emt 0:00:30]} Nd7 {[%emt 0:00:00]} 5. Ng5 {[%emt 0:01:30]} e6 {[%emt 0:08:30]} 6. Bd3 {[%emt 0:01:30]} Ngf6 {[%emt 0:00:30]} 7. Qe2 {[%emt 0:00:30]} Be7 {[%emt 0:11:30]} 8. N1f3 {[%emt 0:01:30]} Nb6 {[%emt 0:07:30]} 9. Ne5 {[%emt 0:03:30]} O-O {[%emt 0:01:30]} 10. c3 {[%emt 0:03:30]} c5 {[%emt 0:01:30]} 11. dxc5 {[%emt 0:00:30]} Bxc5 {[%emt 0:00:30]} 12. Ne4 {[%emt 0:04:30]} Be7 {[%emt 0:04:30]} 13. Nxf6+ {[%emt 0:03:30]} Bxf6 {[%emt 0:00:30]} 14. Qe4 {[%emt 0:00:30]} g6 {[%emt 0:00:30]} 15. Bh6 {[%emt 0:00:30]} Bg7 {[%emt 0:00:30]} 16. Bxg7 {[%emt 0:01:30]} Kxg7 {[%emt 0:00:30]} 17. Rd1 {[%emt 0:00:30]} f5 {[%emt 0:10:30]} 18. Qe2 {[%emt 0:01:30]} Qf6 {[%emt 0:03:30]} 19. O-O {[%emt 0:01:30]} Nd5 {[%emt 0:00:30]} 20. Rfe1 {[%emt 0:05:30]} Re8 {[%emt 0:09:30]} 21. Bc4 {[%emt 0:11:30]} Nb6 {[%emt 0:07:30]} 22. Bb3 {[%emt 0:00:30]} Re7 {[%emt 0:05:30]} 23. Qb5 {[%emt 0:02:30]} Qf8 {[%emt 0:04:30]} 24. Rd4 {[%emt 0:08:30]} Qe8 {[%emt 0:01:30]} 25. Qxe8 {[%emt 0:02:30]} Rxe8 {[%emt 0:00:30]} 26. f4 {[%emt 0:00:30]} Kf6 {[%emt 0:02:52]} 27. a4 {[%emt 0:01:30]} a5 {[%emt 0:06:08]} 28. Red1 {[%emt 0:01:30]} Ra6 {[%emt 0:00:55]} 29. Kf2 {[%emt 0:00:30]} Re7 {[%emt 0:01:43]} 30. Rd8 {[%emt 0:02:30]} Rc7 {[%emt 0:00:15]} 31. R1d6 {[%emt 0:02:30]} Ke7 {[%emt 0:03:39]} 32. Rd3 {[%emt 0:02:30]} Nd5 {[%emt 0:02:26]} 33. Bxd5 {[%emt 0:02:30]} Kxd8 {[%emt 0:00:40]} 34. Bxb7+ {[%emt 0:00:30]} Ke7 {[%emt 0:00:14]} 35. Bxa6 {[%emt 0:00:30]} Bxa6 {[%emt 0:00:06]} 36. Rd4 {[%emt 0:00:00]} Bb7 {[%emt 0:01:47]} 37. Rc4 {[%emt 0:01:00]} Kd6 {[%emt 0:01:19]} 38. Rxc7 {[%emt 0:00:30]} Kxc7 {[%emt 0:00:06]} 39. Nc4 {[%emt 0:00:00]} Bc6 {[%emt 0:01:04]} 40. b3 {[%emt 0:01:00]} Bd5 {[%emt 0:00:40]} 41. Nxa5 {[%emt 0:31:30]} Kb6 {[%emt 0:31:01]} 42. Nc4+ {[%emt 0:00:30]} Kc5 {[%emt 0:00:59]} 43. Nd2 {[%emt 0:00:30]} Kd6 {[%emt 0:00:11]} 44. g3 {[%emt 0:02:30]} e5 {[%emt 0:00:13]} 45. Ke3 {[%emt 0:01:30]} e4 {[%emt 0:00:16]} 46. Kd4 {[%emt 0:00:30]} 1-0

[Event "ESTCC 65 2019"]
[Site "Mali Losinj"]
[Date "2019.09.22"]
[Round "5.16"]
[White "Ewart, Brian R"]
[Black "Thoele, Wolfgang"]
[Result "0-1"]
[ECO "D11"]
[WhiteElo "1882"]
[BlackElo "1865"]
[Annotator "NA"]
[PlyCount "86"]
[EventDate "2019.09.18"]
[EventType "team-tourn"]
[EventCountry "CRO"]
[SourceTitle "playchess.com"]
[Source "ChessBase"]
[SourceQuality "1"]
[WhiteTeam "England"]
[BlackTeam "Germany"]
[WhiteTeamCountry "ENG"]
[BlackTeamCountry "GER"]
[TimeControl "40/5400+30:1800+30"]

1. d4 {[%emt 0:00:30]} d5 {[%emt 0:00:30]} 2. Nf3 {[%emt 0:00:30]} Nf6 {[%emt 0:00:00]} 3. c4 {[%emt 0:00:30]} c6 {[%emt 0:00:00]} 4. e3 {[%emt 0:00:00]} Bg4 {[%emt 0:01:30]} 5. Bd3 {[%emt 0:01:00]} dxc4 {[%emt 0:00:00]} 6. Bxc4 {[%emt 0:00:30]} e6 {[%emt 0:00:00]} 7. O-O {[%emt 0:03:30]} Nbd7 {[%emt 0:01:30]} 8. Nc3 {[%emt 0:05:30]} Be7 {[%emt 0:00:30]} 9. Bd3 {[%emt 0:04:30]} O-O {[%emt 0:07:30]} 10. h3 {[%emt 0:03:30]} Bh5 {[%emt 0:00:30]} 11. g4 {[%emt 0:00:30]} Bg6 {[%emt 0:00:30]} 12. Bxg6 {[%emt 0:00:30]} hxg6 {[%emt 0:00:30]} 13. e4 {[%emt 0:00:30]} Nb6 {[%emt 0:03:30]} 14. Qe2 {[%emt 0:03:30]} Nh7 {[%emt 0:07:30]} 15. Rd1 {[%emt 0:11:30]} Ng5 {[%emt 0:01:30]} 16. Nxg5 {[%emt 0:01:30]} Bxg5 {[%emt 0:00:00]} 17. f4 {[%emt 0:00:30]} Be7 {[%emt 0:01:00]} 18. a4 {[%emt 0:06:30]} Qc7 {[%emt 0:14:30]} 19. a5 {[%emt 0:00:30]} Nd7 {[%emt 0:00:30]} 20. Be3 {[%emt 0:04:30]} Rfe8 {[%emt 0:05:30]} 21. Qc4 {[%emt 0:05:30]} Bd6 {[%emt 0:09:30]} 22. e5 {[%emt 0:01:30]} Be7 {[%emt 0:00:30]} 23. b4 {[%emt 0:07:30]} a6 {[%emt 0:05:30]} 24. Ra2 {[%emt 0:01:30]} b5 {[%emt 0:11:30]} 25. Qd3 {[%emt 0:04:30]} Bxb4 {[%emt 0:00:30]} 26. Ne4 {[%emt 0:01:30]} Be7 {[%emt 0:03:30]} 27. Ng3 {[%emt 0:05:30]} c5 {[%emt 0:01:30]} 28. d5 {[%emt 0:02:30]} c4 {[%emt 0:00:30]} 29. d6 {[%emt 0:01:30]} Qc6 {[%emt 0:00:30]} 30. Qe2 {[%emt 0:03:30]} Bd8 {[%emt 0:00:30]} 31. Rc1 {[%emt 0:05:34]} Rc8 {[%emt 0:02:30]} 32. Bd2 {[%emt 0:00:15]} Nc5 {[%emt 0:01:30]} 33. Bb4 {[%emt 0:04:22]} Bh4 {[%emt 0:07:28]} 34. Nf1 {[%emt 0:01:30]} Nd3 {[%emt 0:00:27]} 35. Qxd3 {[%emt 0:01:06]} cxd3 {[%emt 0:00:03]} 36. Rxc6 {[%emt 0:00:06]} Rxc6 {[%emt 0:00:11]} 37. Rd2 {[%emt 0:01:27]} Rc4 {[%emt 0:01:01]} 38. Ba3 {[%emt 0:01:39]} b4 {[%emt 0:01:46]} 39. Bb2 {[%emt 0:00:34]} Rc2 {[%emt 0:00:23]} 40. Bd4 {[%emt 0:00:00]} Rxd2 {[%emt 0:02:03]} 41. Nxd2 {[%emt 0:30:16]} Be1 {[%emt 0:33:02]} 42. Bb6 {[%emt 0:05:16]} Bxd2 {[%emt 0:02:15]} 43. d7 {[%emt 0:00:21]} Ra8 {[%emt 0:07:13]} 0-1

[Event "ESTCC 65 2019"]
[Site "Mali Losinj"]
[Date "2019.09.22"]
[Round "5.17"]
[White "Lofgren, Claes"]
[Black "Singer, Hans"]
[Result "0-1"]
[ECO "D34"]
[WhiteElo "2059"]
[BlackElo "2184"]
[Annotator "NA"]
[PlyCount "78"]
[EventDate "2019.09.18"]
[EventType "team-tourn"]
[EventCountry "CRO"]
[SourceTitle "playchess.com"]
[Source "ChessBase"]
[SourceQuality "1"]
[WhiteTeam "Denmark"]
[BlackTeam "Austria"]
[WhiteTeamCountry "DEN"]
[BlackTeamCountry "AUT"]
[TimeControl "40/5400+30:1800+30"]

1. d4 {[%emt 0:00:30]} Nf6 {[%emt 0:00:30]} 2. c4 {[%emt 0:00:00]} e6 {[%emt 0:00:30]} 3. g3 {[%emt 0:00:00]} d5 {[%emt 0:00:30]} 4. Bg2 {[%emt 0:00:30]} Be7 {[%emt 0:00:30]} 5. Nf3 {[%emt 0:00:30]} O-O {[%emt 0:00:30]} 6. O-O {[%emt 0:00:30]} c5 {[%emt 0:01:30]} 7. cxd5 {[%emt 0:01:30]} exd5 {[%emt 0:00:00]} 8. Nc3 {[%emt 0:01:30]} Nc6 {[%emt 0:01:00]} 9. b3 {[%emt 0:01:30]} Ne4 {[%emt 0:03:30]} 10. Bb2 {[%emt 0:08:30]} Bf6 {[%emt 0:00:30]} 11. Rc1 {[%emt 0:23:30]} Nxd4 {[%emt 0:15:30]} 12. Nxd4 {[%emt 0:01:30]} Bxd4 {[%emt 0:00:30]} 13. Nxe4 {[%emt 0:05:30]} Bxb2 {[%emt 0:00:30]} 14. Rc2 {[%emt 0:00:30]} dxe4 {[%emt 0:06:30]} 15. Rxb2 {[%emt 0:00:30]} Bf5 {[%emt 0:00:30]} 16. Rd2 {[%emt 0:03:30]} Qe7 {[%emt 0:02:30]} 17. e3 {[%emt 0:01:30]} Rad8 {[%emt 0:02:30]} 18. Rxd8 {[%emt 0:01:30]} Rxd8 {[%emt 0:00:30]} 19. Qc2 {[%emt 0:00:30]} b6 {[%emt 0:08:30]} 20. h3 {[%emt 0:02:30]} h5 {[%emt 0:04:30]} 21. Rc1 {[%emt 0:01:30]} Qe5 {[%emt 0:03:30]} 22. Qc4 {[%emt 0:04:30]} Rd2 {[%emt 0:02:30]} 23. a4 {[%emt 0:03:30]} Be6 {[%emt 0:01:30]} 24. Qa6 {[%emt 0:04:30]} Rxf2 {[%emt 0:13:30]} 25. Kxf2 {[%emt 0:00:30]} Qb2+ {[%emt 0:00:30]} 26. Qe2 {[%emt 0:00:30]} Qxc1 {[%emt 0:00:30]} 27. Bxe4 {[%emt 0:00:30]} Bxh3 {[%emt 0:03:30]} 28. Qd3 {[%emt 0:04:30]} Qb2+ {[%emt 0:01:30]} 29. Kg1 {[%emt 0:01:30]} Qf6 {[%emt 0:00:30]} 30. Bd5 {[%emt 0:02:30]} Be6 {[%emt 0:04:30]} 31. Bxe6 {[%emt 0:04:30]} Qxe6 {[%emt 0:00:30]} 32. Kg2 {[%emt 0:00:30]} g6 {[%emt 0:00:30]} 33. Qd8+ {[%emt 0:01:30]} Kg7 {[%emt 0:00:30]} 34. Qd3 {[%emt 0:00:00]} Qf6 {[%emt 0:02:46]} 35. Qd5 {[%emt 0:01:17]} Qe6 {[%emt 0:01:03]} 36. Qd3 {[%emt 0:00:29]} Qe5 {[%emt 0:00:26]} 37. e4 {[%emt 0:02:42]} Qd4 {[%emt 0:00:48]} 38. Qc2 {[%emt 0:00:30]} Kf6 {[%emt 0:00:54]} 39. Kf3 {[%emt 0:01:51]} Ke5 {[%emt 0:01:21]} 0-1